bitfinex-derivatives/quotes_ETHF0:USTF0_20250205
["timestamp","ask_amount","ask_price","bid_price","bid_amount"]
[1738719544849,0.0036054,2743.9,2743.5,0.5847]
[1738719545758,3.14554606,2743.7,2743.1,4.67420502]
[1738719545952,3.14554606,2743.7,2743.2,0.6044]
[1738719546153,3.14554606,2743.7,2743.1,4.67420502]
[1738719546349,0.5605,2743.6,2743.1,4.67420502]
[1738719546749,0.5814,2743.5,2743.1,4.67420502]
[1738719546951,3.2078,2743.2,2743.1,4.67420502]
[1738719547150,3.2078,2743.2,2742.6,3.8168]
[1738719547151,3.79091,2743.2,2742.6,3.8168]
[1738719547354,3.14554606,2742.8,2742.0,3.2078]
[1738719547559,3.14554606,2742.5,2742.0,1.2134]
[1738719547856,1.1419,2742.7,2742.0,4.4212]
[1738719548456,0.00547086,2742.6,2742.1,0.00547086]
[1738719549257,0.00547086,2742.6,2742.3,3.2078]
[1738719549758,0.00547086,2742.6,2742.3,8.2078]
[1738719549963,4.26354606,2743.4,2742.4,3.14554606]
[1738719549964,0.5615,2743.4,2742.4,3.14554606]
[1738719550161,0.5615,2743.4,2742.7,3.2078]
[1738719550350,0.5615,2743.4,2743.0,3.2078]
[1738719550548,6.90984606,2743.7,2743.0,3.2078]
[1738719550755,6.35334606,2743.7,2743.0,4.90400502]
[1738719550955,3.2078,2743.7,2743.1,1.69620502]
[1738719551161,0.0036054,2743.6,2743.1,1.69620502]
[1738719552966,0.0036054,2743.6,2743.2,0.6164]
[1738719553260,0.0036054,2743.6,2743.3,3.2078]
[1738719553560,0.0036054,2743.6,2743.4,0.5777]
[1738719566068,0.0036054,2743.6,2743.5,2.50861675]
[1738719566268,0.5755,2744.7,2743.5,7.74302177]
[1738719566565,0.5755,2744.7,2744.3,3.2078]
[1738719566873,3.2078,2744.4,2743.7,3.2078]
[1738719567165,2.50861675,2744.2,2743.7,3.2078]
[1738719567380,0.5755,2744.7,2743.8,0.00547086]
[1738719567381,2.50861675,2743.9,2743.8,0.00547086]
[1738719568773,1.1664,2744.1,2743.8,0.00547086]
[1738719570367,0.5755,2744.1,2743.8,0.00547086]
[1738719572379,3.2078,2744.3,2743.8,0.00547086]
[1738719573177,0.6104,2744.5,2743.8,0.00547086]
[1738719573377,0.6104,2744.5,2743.8,0.56667086]
[1738719573574,0.6104,2744.5,2744.0,3.2078]
[1738719573769,0.6104,2744.5,2744.1,0.5931]
[1738719575074,3.2078,2744.9,2744.3,3.2078]
[1738719575580,0.5396,2744.8,2744.3,3.2078]
[1738719575880,2.50861675,2745.1,2744.3,3.2078]
[1738719576079,3.04821675,2745.1,2744.3,3.2078]
[1738719577276,3.04821675,2745.1,2744.3,3.7523]
[1738719577781,3.2078,2745.5,2744.9,3.2078]
[1738719577972,3.2078,2745.5,2745.0,1.1322]
[1738719578682,1.0765,2745.7,2745.4,3.2078]
[1738719578877,16.846,2745.8,2745.4,3.2078]
[1738719579079,16.846,2745.8,2745.1,5.45670502]
[1738719579276,3.2078,2745.7,2745.3,0.00547086]
[1738719580684,16.846,2745.8,2745.3,0.00547086]
[1738719581077,2.50861675,2745.7,2745.3,0.00547086]
[1738719581275,3.09120675,2745.7,2745.3,0.00547086]
[1738719581684,2.50861675,2745.7,2745.3,0.00547086]
[1738719584686,16.846,2745.8,2745.3,0.00547086]
[1738719585579,3.2078,2745.9,2745.3,0.00547086]
[1738719585785,0.5898,2746.1,2745.5,3.2078]
[1738719585982,0.5898,2746.1,2745.6,1.1608]
[1738719587383,3.2078,2745.9,2745.6,0.5702]
[1738719587688,2.50861675,2745.7,2745.4,1.69620502]
[1738719588187,3.2078,2745.6,2745.3,0.00547086]
[1738719588391,2.50861675,2745.4,2745.3,0.00547086]
[1738719588786,2.50861675,2745.4,2744.6,2.81010502]
[1738719588787,3.09751675,2745.4,2744.6,1.1139]
[1738719588988,2.50861675,2744.7,2744.1,4.90400502]
[1738719589184,2.50861675,2744.4,2743.9,0.5709]
[1738719590084,2.50861675,2744.4,2743.9,0.57637086]
[1738719590592,3.7967,2744.6,2743.9,0.57637086]
[1738719591886,3.2078,2744.3,2743.9,0.00547086]
[1738719592082,3.14270801,2744.1,2743.9,0.00547086]
[1738719592694,3.2078,2744.0,2743.9,0.00547086]
[1738719592997,3.2078,2744.3,2743.9,0.00547086]
[1738719593198,0.00547086,2744.2,2743.9,0.00547086]
[1738719599298,3.2078,2744.0,2743.9,0.00547086]
[1738719600098,0.00547086,2744.2,2743.9,0.00547086]
[1738719601799,3.2078,2744.1,2743.9,0.00547086]
[1738719601999,6.35050801,2744.1,2743.9,0.00547086]
[1738719603201,3.2078,2744.1,2743.9,0.00547086]
[1738719603494,0.00547086,2744.2,2743.9,0.00547086]
[1738719603694,0.00547086,2744.2,2744.0,3.2078]
[1738719603895,3.2078,2744.8,2744.1,0.5805]
[1738719604203,3.14270801,2744.7,2744.2,0.5734]
[1738719604700,0.575,2744.6,2744.2,0.5734]
[1738719606795,1.918,2745.2,2744.2,0.5734]
[1738719607101,1.918,2745.2,2744.3,0.5756]
[1738719607303,3.2078,2745.1,2744.3,0.5756]
[1738719608198,3.2078,2745.1,2744.4,3.2078]
[1738719609600,3.2078,2745.1,2744.5,1.69620502]
[1738719610099,3.2078,2745.1,2744.6,1.69620502]
[1738719610398,0.5543,2745.4,2744.7,4.90400502]
[1738719610709,3.2078,2745.8,2745.0,3.2078]
[1738719610896,3.2078,2745.8,2745.1,1.1292]
[1738719611093,0.5836,2745.9,2745.6,3.2078]
[1738719611796,0.5836,2745.9,2745.5,0.00547086]
[1738719612401,3.2078,2746.2,2745.5,0.00547086]
[1738719612706,3.14270801,2745.8,2745.5,0.00547086]
[1738719612898,3.2078,2745.6,2745.5,0.00547086]
[1738719613303,3.2078,2745.6,2744.8,0.5756]
[1738719613503,3.2078,2745.3,2744.5,0.5636]
[1738719613805,3.2078,2745.3,2744.7,3.2078]
[1738719614401,3.14270801,2745.1,2744.7,3.2078]
[1738719614603,3.14270801,2745.1,2744.7,3.21327086]
[1738719614806,3.21327086,2745.3,2744.7,3.21327086]
[1738719617911,0.00547086,2745.3,2744.7,3.21327086]
[1738719619912,3.21327086,2745.3,2744.7,3.21327086]
[1738719624324,0.00547086,2745.3,2745.0,3.2078]
[1738719624515,0.00547086,2745.3,2745.1,0.5759]
[1738719624818,1.95548,2746.2,2745.2,0.5605]
[1738719624819,3.2078,2746.2,2745.2,0.5605]
[1738719625019,2.50506782,2746.4,2745.7,3.2078]
[1738719625329,3.7563,2746.5,2745.7,3.2078]
[1738719625621,3.7563,2746.5,2745.8,0.5586]
[1738719625815,3.2078,2746.5,2745.8,3.5366]
[1738719626324,3.2078,2746.8,2746.1,3.2078]
[1738719626519,3.2078,2746.8,2746.2,0.5605]
[1738719626823,0.5485,2746.9,2746.2,0.56597086]
[1738719627616,3.2078,2747.5,2746.6,3.2078]
[1738719627818,3.2078,2747.5,2746.7,0.5873]
[1738719628018,3.2078,2747.5,2746.7,1.1819]
[1738719628418,3.2078,2747.5,2746.9,3.2078]
[1738719628617,3.2078,2747.5,2747.0,0.5557]
[1738719628818,11.36294047,2747.7,2747.0,0.5557]
[1738719630015,8.22557328,2747.7,2747.0,0.5557]
[1738719630324,3.2078,2747.8,2747.2,3.2078]
[1738719630630,20.0418,2748.5,2747.5,3.2078]
[1738719630821,3.13736719,2748.9,2748.3,3.2078]
[1738719631022,3.2078,2748.9,2748.0,3.2078]
[1738719631222,0.5371,2749.1,2748.3,3.2132608]
[1738719631828,6.34516719,2749.0,2748.3,3.2132608]
[1738719632126,6.34516719,2748.7,2748.3,0.0054608]
[1738719633532,3.13736719,2748.7,2748.3,0.0054608]
[1738719633726,6.34516719,2748.7,2748.3,0.0054608]
[1738719634624,7.71716719,2749.0,2748.3,0.0054608]
[1738719634923,7.71716719,2749.0,2748.3,3.2132608]
[1738719636220,6.34516719,2749.0,2748.3,3.2132608]
[1738719640927,3.13736719,2748.7,2748.3,0.0054608]
[1738719641127,3.13736719,2748.4,2748.3,0.0054608]
[1738719641328,6.34516719,2748.4,2748.3,0.0054608]
[1738719642531,11.34516719,2748.4,2747.1,6.00040502]
[1738719642729,6.34516719,2747.7,2747.1,4.3042]
[1738719643035,3.2078,2748.1,2747.4,3.2078]
[1738719643236,3.13736719,2748.3,2747.8,3.2078]
[1738719643537,3.13736719,2748.3,2747.9,0.5665]
[1738719643723,3.14279446,2748.3,2747.9,0.5665]
[1738719644129,0.00542727,2748.3,2747.9,0.5665]
[1738719644729,0.00542727,2748.3,2748.1,3.2078]
[1738719645333,0.00542727,2748.3,2748.1,3.7974]
[1738719650935,0.00542727,2748.3,2747.8,3.2132608]
[1738719651240,3.72477446,2748.3,2747.8,3.2132608]
[1738719651443,3.14279446,2748.3,2747.8,3.2132608]
[1738719652941,3.13736719,2748.0,2747.8,0.0054608]
[1738719653144,0.562,2747.9,2747.8,0.0054608]
[1738719657640,6.931,2747.9,2746.1,3.2078]
[1738719657836,3.13736719,2747.2,2746.4,3.2078]
[1738719658743,3.13736719,2747.2,2746.5,0.0054608]
[1738719660541,4.07404998,2747.4,2746.5,0.0054608]
[1738719660542,3.13736719,2746.9,2746.5,0.0054608]
[1738719660842,6.34516719,2746.9,2746.5,0.0054608]
[1738719661642,6.34516719,2746.6,2746.5,0.0054608]
[1738719661838,0.58235,2746.5,2745.6,3.7997]
[1738719662038,3.13736719,2746.0,2745.6,0.5919]
[1738719662348,3.2078,2746.3,2745.7,3.2078]
[1738719662349,6.34516719,2746.3,2745.7,3.2078]
[1738719662839,6.34516719,2746.3,2745.6,0.5919]
[1738719663142,6.35062799,2746.3,2745.7,0.0054608]
[1738719663645,6.35062799,2746.3,2745.7,0.5892608]
[1738719664743,3.13736719,2746.0,2745.7,0.0054608]
[1738719665246,0.5703,2745.9,2745.0,3.7916]
[1738719665451,3.13736719,2745.2,2744.5,3.2078]
[1738719665641,3.13736719,2744.9,2744.5,3.2078]
[1738719666546,0.0054608,2745.0,2744.5,3.2078]
[1738719666744,0.0054608,2745.0,2744.6,1.1138]
[1738719667546,3.13736719,2744.9,2744.6,1.1138]
[1738719667747,0.0054608,2745.0,2744.6,1.1138]
[1738719668148,0.0054608,2745.0,2744.9,3.2078]
[1738719668750,0.0054608,2745.0,2744.6,4.3216]
[1738719671653,0.0054608,2745.0,2744.9,3.2078]
[1738719680361,3.2078,2746.6,2745.3,3.13736719]
[1738719680666,0.5807,2746.7,2746.1,3.2078]
[1738719681364,0.5861608,2746.7,2746.1,3.2132608]
[1738719682664,0.0054608,2746.7,2746.4,3.2078]
[1738719683263,0.5371,2747.4,2746.5,2.28060502]
[1738719683559,3.2078,2748.2,2747.2,3.13736719]
[1738719683762,3.13736719,2748.5,2747.9,3.2078]
[1738719683966,3.13736719,2748.5,2747.3,2.85510502]
[1738719683967,3.43284735,2748.5,2747.4,1.69620502]
[1738719684159,3.43284735,2748.5,2747.7,3.2078]
[1738719684558,0.0054608,2748.4,2747.8,0.0054608]
[1738719687859,3.13736719,2747.9,2747.8,0.0054608]
[1738719689762,8.13736719,2747.9,2747.0,3.2078]
[1738719690067,3.2078,2747.7,2747.0,3.2078]
[1738719690261,3.2078,2748.3,2747.5,3.2078]
[1738719690660,3.2078,2748.3,2747.6,1.1693]
[1738719690969,3.2078,2748.3,2747.6,1.1747608]
[1738719693871,3.14282799,2748.4,2747.6,1.1747608]
[1738719694164,3.2078,2748.3,2747.6,1.1747608]
[1738719696071,3.13736719,2748.1,2747.6,0.5854608]
[1738719696270,0.0054608,2748.4,2747.6,0.5854608]
[1738719696271,3.13736719,2747.8,2747.6,0.0054608]
[1738719696469,3.7461,2747.7,2747.6,0.0054608]
[1738719696669,4.2866,2747.7,2747.0,3.2078]
[1738719696868,3.13736719,2747.5,2747.0,3.2078]
[1738719697871,3.13736719,2747.5,2747.0,3.2132608]
[1738719699668,3.13736719,2747.2,2747.0,3.2132608]
[1738719700868,3.13736719,2747.2,2747.0,0.0054608]
[1738719702477,3.2078,2747.1,2747.0,0.0054608]
[1738719702867,3.13736719,2746.9,2746.2,3.2078]
[1738719703272,3.71964719,2746.9,2746.2,3.2078]
[1738719703473,3.13736719,2747.2,2746.6,3.2078]
[1738719703772,0.62619848,2757.8,2746.9,3.2078]
[1738719703773,3.7525,2747.7,2746.9,3.2078]
[1738719703979,0.0054608,2747.2,2747.0,1.0886]
[1738719709580,0.0054608,2747.2,2747.0,4.2964]
[1738719711881,0.0054608,2747.2,2747.0,0.5435]
[1738719712780,0.0054608,2747.2,2746.7,4.90400502]
[1738719714379,0.0054608,2747.2,2746.7,3.2078]
[1738719715378,3.2078,2747.1,2746.6,0.0054608]
[1738719716186,3.79003,2747.1,2746.6,0.0054608]
[1738719716487,3.14282799,2747.2,2746.6,0.0054608]
[1738719717091,0.0054608,2747.2,2746.7,3.2078]
[1738719718994,3.14282799,2747.2,2746.7,3.2078]
[1738719719888,3.14282799,2747.2,2746.6,0.0054608]
[1738719719889,6.92743719,2746.9,2746.6,0.0054608]
[1738719720098,0.58231,2746.7,2746.6,0.0054608]
[1738719720391,3.13736719,2746.6,2746.4,3.2078]
[1738719720578,3.69546719,2746.6,2746.4,3.2078]
[1738719720786,3.69546719,2746.6,2745.8,0.5649]
[1738719720984,3.69546719,2746.6,2745.7,3.2078]
[1738719720985,3.13736719,2746.3,2745.7,3.2078]
[1738719721492,1.9031,2746.5,2745.7,3.21147407]
[1738719722984,1.9031,2746.5,2745.8,0.5395]
[1738719723586,1.364,2746.5,2745.8,0.5395]
[1738719723986,1.364,2746.5,2746.0,3.2078]
[1738719725082,1.364,2746.5,2745.8,0.5395]
[1738719725293,1.364,2746.5,2746.0,3.2078]
[1738719726497,1.364,2746.5,2745.8,0.5395]
[1738719728788,4.5718,2746.5,2745.7,3.21147407]
[1738719728989,3.13736719,2745.9,2745.7,0.00367407]
[1738719729182,1.1635,2745.8,2745.7,0.00367407]
[1738719729795,0.58253,2745.7,2745.2,0.5919]
[1738719729987,3.2078,2745.6,2745.2,0.5919]
[1738719730792,3.7607,2746.4,2745.5,3.2078]
[1738719731096,0.0054608,2745.7,2745.3,2.27110502]
[1738719731296,0.5946,2746.7,2745.6,6.34516719]
[1738719731493,0.5946,2746.7,2746.0,3.2078]
[1738719731698,0.5946,2746.7,2746.1,0.5815]
[1738719732287,6.34516719,2746.5,2745.5,4.90400502]
[1738719732498,6.34516719,2746.5,2746.1,0.0054608]
[1738719732900,3.2078,2746.5,2746.1,0.0054608]
[1738719733597,0.6000608,2746.7,2746.1,0.0054608]
[1738719735191,0.6000608,2746.7,2746.3,3.2078]
[1738719735492,0.0054608,2746.7,2746.4,0.579]
[1738719736898,0.0054608,2746.7,2746.6,3.2078]
[1738719739001,0.0054608,2746.7,2746.4,0.579]
[1738719739591,0.0054608,2746.7,2746.4,3.7868]
[1738719744097,0.0054608,2746.7,2746.5,4.83357221]
[1738719744296,0.00425053,2748.0,2746.6,0.5521]
[1738719744606,0.00425053,2748.0,2747.4,3.2078]
[1738719744901,20.61387,2747.9,2747.5,0.5521]
[1738719745206,20.6024,2747.9,2747.5,0.5521]
[1738719746504,17.3946,2747.9,2747.5,0.5521]
[1738719747109,16.824,2747.9,2747.5,0.5521]
[1738719747408,16.824,2747.9,2747.6,0.5822]
[1738719748608,16.824,2747.9,2747.5,0.5575608]
[1738719748804,16.824,2747.9,2747.6,0.5589]
[1738719749004,16.824,2747.9,2747.8,3.2078]
[1738719750196,0.00971133,2748.0,2747.8,3.2078]
[1738719754506,5.09012852,2748.0,2747.5,3.2132608]
[1738719755210,4.50807852,2748.0,2747.5,3.2132608]
[1738719756900,1.37071133,2748.0,2747.5,3.2132608]
[1738719759812,0.00971133,2748.0,2747.9,3.2078]
[1738719760518,0.00971133,2748.0,2747.6,4.8957]
[1738719760716,0.00971133,2748.0,2747.6,4.3147]
[1738719763316,0.00971133,2748.0,2747.6,1.1069]
[1738719765821,0.58213,2747.6,2746.6,3.2078]
[1738719766121,3.2078,2747.3,2746.7,0.5694]
[1738719766311,6.35487852,2748.0,2747.0,3.2078]
[1738719766506,6.35487852,2748.0,2747.1,1.1347]
[1738719766916,6.35487852,2748.0,2747.3,0.0054608]
[1738719768113,3.13736719,2747.7,2747.3,0.0054608]
[1738719768612,2.50235287,2747.7,2747.3,0.0054608]
[1738719768813,3.2078,2747.6,2747.3,0.0054608]
[1738719769014,0.5594,2747.5,2747.3,0.0054608]
[1738719769220,1.1197,2747.5,2747.3,0.0054608]
[1738719770017,2.50235287,2747.4,2747.3,0.0054608]
[1738719770213,3.08451287,2747.4,2747.3,0.0054608]
[1738719770723,2.50235287,2747.4,2747.3,0.0054608]
[1738719771823,8.08451287,2747.4,2747.3,0.0054608]
[1738719772128,7.50235287,2747.4,2747.3,0.0054608]
[1738719772620,3.13661962,2747.4,2747.3,0.0054608]
[1738719772820,3.71877962,2747.4,2747.3,0.0054608]
[1738719773621,3.13661962,2747.4,2747.3,0.0054608]
[1738719774023,3.14033883,2747.4,2747.3,0.0054608]
[1738719774423,3.72249883,2747.4,2747.3,0.0054608]
[1738719774825,3.14033883,2747.4,2747.3,0.0054608]
[1738719780427,0.58224,2747.1,2746.7,0.5694]
[1738719780622,3.13661962,2746.8,2746.7,0.47643037]
[1738719780923,3.13661962,2746.8,2745.9,3.2078]
[1738719781221,6.359,2747.1,2745.9,4.3335]
[1738719781222,3.13661962,2746.3,2745.9,4.3335]
[1738719781421,3.13661962,2746.0,2745.9,1.1257]
[1738719781619,3.13661962,2746.0,2745.5,3.2078]
[1738719781815,3.13661962,2746.0,2745.6,0.5747]
[1738719782522,3.2078,2745.8,2745.6,0.5747]
[1738719782729,3.13661962,2745.7,2745.3,0.551]
[1738719782920,3.13661962,2745.7,2744.7,1.0908]
[1738719783122,3.13661962,2745.4,2744.7,1.0908]
[1738719783320,3.71920962,2745.4,2744.7,1.0908]
[1738719783529,3.2078,2745.1,2744.7,1.0908]
[1738719783934,3.2078,2745.1,2744.8,0.5796]
[1738719785225,3.2078,2745.1,2744.7,0.5474]
[1738719785226,6.34441962,2745.1,2744.7,0.5474]
[1738719785429,1.359,2745.3,2744.1,1.0995]
[1738719785430,6.34441962,2744.8,2744.1,1.0995]
[1738719785628,3.13661962,2744.2,2744.1,1.1117]
[1738719786631,0.0054608,2744.4,2744.1,1.1117]
[1738719787735,6.34441962,2744.2,2743.3,0.5611]
[1738719787934,6.34441962,2744.2,2743.5,0.5733]
[1738719788729,3.2078,2744.2,2743.6,3.2078]
[1738719788933,3.2078,2744.2,2743.5,0.5733]
[1738719789132,6.34441962,2744.2,2743.5,0.5733]
[1738719789326,6.34441962,2743.9,2743.5,0.5733]
[1738719791945,6.34441962,2743.6,2743.4,0.5384]
[1738719792144,6.34441962,2743.6,2742.9,0.5578]
[1738719792345,3.2078,2743.3,2742.9,0.5578]
[1738719793948,3.2078,2743.7,2743.0,3.2078]
[1738719794251,4.49561962,2743.9,2743.0,3.2078]
[1738719794842,3.13661962,2743.9,2743.0,3.2078]
[1738719795044,3.2078,2743.3,2742.9,0.5578]
[1738719795548,2.22815975,2744.0,2743.0,3.2078]
[1738719795549,3.2078,2743.7,2743.0,3.2078]
[1738719797358,3.2078,2743.7,2742.9,0.5578]
[1738719797359,3.2078,2743.7,2743.3,3.2078]
[1738719797652,3.2078,2744.0,2743.4,1.1569]
[1738719797856,3.13661962,2743.9,2743.4,1.1569]
[1738719798546,3.2078,2743.7,2743.4,1.1569]
[1738719801855,3.2078,2744.0,2743.4,1.1569]
[1738719802256,0.0054608,2744.4,2743.5,0.5472]
[1738719802648,6.92726962,2744.2,2743.5,0.5472]
[1738719803354,3.13661962,2743.9,2743.5,0.5472]
[1738719804755,2.50900493,2743.6,2743.4,0.5881]
[1738719805056,2.50900493,2743.6,2743.0,3.2078]
[1738719805057,5.71680493,2743.6,2743.0,3.2078]
[1738719805353,7.07580493,2743.6,2743.0,3.2078]
[1738719805853,7.07580493,2743.6,2743.1,0.5921]
[1738719806456,2.50900493,2743.3,2743.1,0.5921]
[1738719806656,2.50900493,2743.3,2742.8,1.1767]
[1738719806862,2.50900493,2743.0,2742.8,0.5857]
[1738719807267,2.50900493,2743.0,2742.7,3.2078]
[1738719807562,0.58317,2742.7,2742.2,3.2078]
[1738719807760,0.5455,2742.6,2742.2,3.2078]
[1738719807958,0.5455,2742.6,2741.9,1.1141]
[1738719807959,2.50900493,2742.4,2741.9,1.1141]
[1738719808265,2.50900493,2742.1,2741.9,0.5514]
[1738719808565,2.50900493,2742.1,2741.5,0.5538]
[1738719808758,3.2078,2741.9,2741.5,0.5538]
[1738719809359,3.2078,2742.2,2741.5,0.5538]
[1738719809555,3.2078,2742.5,2741.6,3.2078]
[1738719810461,3.2078,2742.5,2741.5,0.5538]
[1738719810763,3.14880785,2742.3,2741.5,0.5538]
[1738719811355,3.2078,2742.5,2741.5,0.5538]
[1738719811555,3.2078,2742.5,2741.7,3.2078]
[1738719814562,5.05330785,2742.6,2742.1,3.2078]
[1738719814761,5.05330785,2742.6,2742.2,1.0888]
[1738719815558,3.2132608,2742.7,2742.2,1.0888]
[1738719815766,3.2132608,2742.7,2742.3,0.5838]
[1738719816166,0.0054608,2742.7,2742.3,0.5838]
[1738719816761,0.0054608,2742.7,2742.5,3.2078]
[1738719828974,0.0054608,2742.7,2742.3,0.5838]
[1738719829172,0.0054608,2742.7,2742.5,3.2078]
[1738719834180,3.2078,2743.5,2742.5,10.71813573]
[1738719834377,6.30113573,2743.5,2742.9,3.2078]
[1738719834677,6.30113573,2743.5,2742.5,7.88200502]
[1738719835375,0.00547086,2743.3,2742.7,0.00547086]
[1738719835680,2.51033573,2742.9,2742.7,0.00547086]
[1738719835869,0.5547,2742.8,2742.7,0.00547086]
[1738719836474,3.10633573,2743.2,2742.7,0.00547086]
[1738719836671,0.00547086,2743.3,2742.9,3.2078]
[1738719837377,0.00547086,2743.3,2743.0,0.5455]
[1738719840081,2.51033573,2743.2,2742.7,0.00547086]
[1738719840481,0.5438,2743.1,2742.7,0.00547086]
[1738719842284,0.83569052,2743.1,2742.7,0.00547086]
[1738719843674,0.5438,2743.1,2742.7,0.00547086]
[1738719852887,3.2078,2743.2,2742.7,0.00547086]
[1738719853994,0.00547086,2743.3,2742.7,0.00547086]
[1738719855587,2.51033573,2743.2,2742.7,0.00547086]
[1738719855785,5.71813573,2742.9,2742.7,0.00547086]
[1738719855990,0.58319,2742.6,2742.0,0.5408]
[1738719856185,2.51033573,2742.1,2742.0,0.5408]
[1738719856387,2.51033573,2742.1,2741.7,0.5711]
[1738719856703,1.1556,2742.0,2741.5,3.2078]
[1738719857294,1.1556,2742.0,2741.6,1.6709]
[1738719857790,1.1556,2742.0,2741.6,1.1119]
[1738719859789,1.1556,2742.0,2741.6,1.6557]
[1738719867895,3.2078,2741.7,2740.8,3.2078]
[1738719868199,2.51033573,2741.4,2741.0,0.5652]
[1738719868395,5.71813573,2741.4,2741.0,0.5652]
[1738719868602,0.5952,2741.3,2740.9,0.5449]
[1738719868902,1.1481,2741.3,2740.9,0.5449]
[1738719872205,2.51033573,2741.1,2740.7,3.2078]
[1738719872405,2.51033573,2741.1,2740.5,0.5467]
[1738719872406,5.71813573,2741.1,2740.5,0.5467]
[1738719872708,1.354,2741.0,2740.5,0.5467]
[1738719873102,2.51033573,2741.1,2740.5,0.5467]
[1738719873412,1.1481,2741.3,2740.7,3.2078]
[1738719873609,3.2078,2741.4,2740.7,7.88200502]
[1738719874413,2.51033573,2740.9,2740.5,0.5467]
[1738719878310,3.86433573,2740.9,2740.5,0.5467]
[1738719879414,2.51033573,2740.6,2740.1,3.2078]
[1738719879616,1.1274,2740.5,2740.1,3.2078]
[1738719880910,1.1274,2740.5,2740.0,0.5421]
[1738719883213,2.51033573,2740.3,2739.7,3.2078]
[1738719883514,3.2078,2740.4,2739.7,3.2078]
[1738719883515,2.51033573,2740.0,2739.7,3.2078]
[1738719888315,0.5375,2739.9,2739.5,1.7126]
[1738719888523,2.51033573,2739.6,2739.5,1.7126]
[1738719889821,3.64203573,2739.9,2739.5,1.7126]
[1738719890518,3.21327086,2740.1,2739.5,1.7126]
[1738719891422,2.51033573,2739.9,2739.5,1.7126]
[1738719895718,0.5413,2740.0,2739.5,1.7126]
[1738719895719,0.00547086,2740.1,2739.7,3.2078]
[1738719900319,2.51033573,2739.9,2739.5,1.7126]
[1738719900524,2.51033573,2739.9,2739.5,1.1354]
[1738719900821,2.51033573,2739.6,2739.5,1.1354]
[1738719901513,5.71813573,2739.6,2739.0,3.2078]
[1738719901714,2.51033573,2739.1,2739.0,3.2078]
[1738719902022,5.02067146,2739.1,2737.6,3.21595071]
[1738719902219,2.51033573,2738.0,2737.6,0.00815071]
[1738719902426,5.72360659,2738.6,2737.8,3.2078]
[1738719902717,2.51033573,2738.4,2737.7,0.5811]
[1738719902922,2.51033573,2738.4,2737.8,0.5489]
[1738719903123,2.51033573,2738.1,2737.6,0.00815071]
[1738719903423,3.2078,2738.3,2737.6,0.00815071]
[1738719903424,2.51033573,2737.8,2737.6,0.00815071]
[1738719903719,0.00547086,2738.6,2737.6,2.51848644]
[1738719903926,0.00547086,2738.6,2737.8,3.2078]
[1738719904219,0.00547086,2738.6,2738.4,3.2078]
[1738719904423,0.00547086,2738.6,2738.5,1.1312]
[1738719905312,3.2078,2738.9,2738.5,1.1312]
[1738719905514,2.51033573,2739.3,2738.7,3.2078]
[1738719905716,1.45893,2740.8,2738.8,0.542]
[1738719905717,2.51033573,2739.6,2738.8,0.542]
[1738719905921,2.51033573,2739.6,2739.0,3.2078]
[1738719906122,3.2078,2739.7,2739.0,3.2078]
[1738719906321,3.2078,2739.7,2739.1,0.5606]
[1738719906522,0.00547086,2739.6,2739.1,0.5606]
[1738719907819,0.00547086,2739.6,2739.1,2.25680502]
[1738719908019,3.2078,2739.7,2739.1,2.25680502]
[1738719909223,3.21327086,2739.7,2739.1,2.25680502]
[1738719910228,0.00547086,2739.7,2739.3,3.2078]
[1738719910532,0.00547086,2739.7,2739.1,2.25680502]
[1738719910533,0.00547086,2739.7,2739.6,3.2078]
[1738719911027,6.36076532,2740.4,2739.6,3.2078]
[1738719911435,6.36076532,2740.4,2739.7,1.1483]
[1738719912131,0.00547086,2740.3,2739.8,0.00547086]
[1738719913129,3.2078,2739.9,2739.8,0.00547086]
[1738719913533,3.2078,2739.9,2739.0,1.1225]
[1738719913735,6.36076532,2739.6,2739.0,1.1225]
[1738719913928,6.36076532,2739.6,2739.0,0.5758]
[1738719914130,6.36076532,2739.3,2738.5,2.79100502]
[1738719914329,6.36076532,2739.3,2738.5,3.36680502]
[1738719914535,6.36076532,2739.6,2738.5,6.57460502]
[1738719914835,6.36076532,2739.6,2738.6,0.00547086]
[1738719915039,3.2078,2739.6,2738.9,3.2078]
[1738719915627,3.2078,2739.6,2738.9,4.90400502]
[1738719915829,3.15296532,2740.2,2739.2,3.2078]
[1738719916035,3.2078,2740.0,2739.3,1.1225]
[1738719917041,3.2078,2740.0,2739.4,0.5714]
[1738719918128,3.15296532,2740.2,2739.4,0.5714]
[1738719919941,3.2078,2740.0,2739.4,0.5714]
[1738719920343,3.2078,2740.0,2739.4,3.7792]
[1738719920736,3.15296532,2739.6,2739.1,1.69620502]
[1738719921045,3.2078,2739.4,2738.7,4.8601]
[1738719922845,3.79167,2739.4,2738.7,4.8601]
[1738719923329,3.2078,2739.4,2738.7,4.8601]
[1738719925440,3.2078,2739.7,2739.1,3.2078]
[1738719925635,3.15296532,2739.9,2739.1,3.2078]
[1738719926542,3.2078,2740.0,2739.1,3.2078]
[1738719927042,3.2078,2740.0,2739.1,3.21143067]
[1738719928935,3.2078,2740.0,2739.1,4.90763569]
[1738719932142,3.79154,2740.0,2739.1,4.90763569]
[1738719933148,3.2078,2739.7,2739.1,4.90763569]
[1738719933346,3.15296532,2739.6,2739.1,1.69983569]
[1738719933549,0.5595,2739.6,2739.1,1.69983569]
[1738719934351,0.5595,2739.6,2739.1,0.00363067]
[1738719934853,3.2078,2739.4,2739.1,0.00363067]
[1738719935044,3.79168,2739.4,2739.1,0.00363067]
[1738719935239,3.15296532,2739.3,2739.1,0.00363067]
[1738719936944,3.15296532,2739.3,2738.6,0.00547086]
[1738719936945,0.58398,2738.9,2738.6,0.00547086]
[1738719937148,4.66747,2739.4,2737.9,0.5687]
[1738719937149,3.2078,2738.7,2737.9,0.5687]
[1738719937349,1.45977,2739.2,2737.3,4.90400502]
[1738719937350,6.36076532,2738.1,2737.3,4.90400502]
[1738719937549,3.15296532,2737.8,2737.3,3.2078]
[1738719937849,3.15296532,2737.8,2737.2,4.1527]
[1738719937850,6.36076532,2737.8,2737.2,4.1527]
[1738719938248,3.15296532,2737.8,2737.2,4.1527]
[1738719938452,3.15296532,2737.8,2737.4,0.00547086]